bitfinex/quotes_ETHUSD_20250217
["timestamp","ask_amount","ask_price","bid_price","bid_amount"]
[1739789860189,0.0075,2755.5,2755.1,3.62951]
[1739789860407,0.0075,2755.5,2755.2,3.62946]
[1739789861589,0.0075,2755.5,2755.3,3.62936]
[1739789861790,0.0075,2755.5,2755.4,3.62923]
[1739789862691,0.0075,2755.8,2755.5,3.629]
[1739789862922,0.0075,2755.8,2755.6,3.62892]
[1739789863285,0.0075,2755.8,2755.7,3.62884]
[1739789864018,0.0075,2755.8,2755.5,3.62897]
[1739789864174,0.0075,2755.8,2755.6,3.62896]
[1739789864519,0.0075,2755.8,2755.5,3.62897]
[1739789864825,0.0075,2755.8,2755.6,3.6289]
[1739789865277,0.0075,2755.8,2755.5,3.62897]
[1739789867409,0.0075,2755.8,2755.6,3.62887]
[1739789867607,0.0075,2756.1,2755.3,0.8168]
[1739789867910,0.0075,2756.1,2755.9,3.62845]
[1739789868520,0.0075,2756.0,2755.9,3.62845]
[1739789868917,0.1,2756.2,2755.9,3.62845]
[1739789869130,0.1,2756.2,2756.1,3.62831]
[1739789869430,0.1,2756.2,2755.7,3.62874]
[1739789869590,0.1,2756.2,2755.8,3.62862]
[1739789869929,0.1,2756.2,2755.9,3.62857]
[1739789870442,0.1,2756.2,2755.7,3.52874]
[1739789870443,0.0075,2756.1,2755.7,3.52874]
[1739789870743,0.0075,2756.1,2755.8,3.6287]
[1739789872009,0.0075,2756.1,2755.8,3.62861]
[1739789872191,0.0075,2756.1,2755.9,3.62855]
[1739789872539,0.0075,2756.1,2755.6,3.62887]
[1739789872776,0.0075,2756.1,2755.8,3.62859]
[1739789873249,0.0075,2756.1,2755.8,7.25723]
[1739789873407,0.0075,2756.1,2755.9,3.62856]
[1739789873603,0.0075,2756.1,2755.8,3.62859]
[1739789875042,0.0075,2756.1,2755.9,3.62853]
[1739789875187,0.0075,2756.1,2755.8,3.62859]
[1739789875510,0.0075,2756.1,2755.7,3.62876]
[1739789876222,0.0075,2756.1,2755.8,3.62863]
[1739789876419,0.015,2756.1,2755.6,3.62886]
[1739789876627,0.015,2756.1,2755.7,3.62877]
[1739789877541,0.015,2756.1,2755.8,3.62861]
[1739789878037,0.015,2756.1,2755.7,7.25751]
[1739789878193,0.015,2756.1,2755.7,3.62874]
[1739789878395,0.015,2756.1,2755.8,3.6286]
[1739789878589,3.64332,2756.1,2755.6,3.62896]
[1739789878835,0.015,2755.9,2755.6,3.62896]
[1739789880247,0.015,2755.9,2755.6,3.62893]
[1739789880827,0.015,2755.9,2755.6,3.62895]
[1739789881662,0.015,2755.9,2755.5,3.62901]
[1739789881974,0.015,2755.9,2755.7,3.62882]
[1739789883657,0.015,2756.0,2755.5,3.629]
[1739789884041,3.64347,2756.0,2755.5,3.629]
[1739789884627,0.0075,2755.6,2755.0,3.62968]
[1739789884957,0.0075,2755.6,2755.3,3.62929]
[1739789885752,3.6363,2755.8,2755.3,3.62929]
[1739789886133,0.0075,2755.8,2755.3,3.62929]
[1739789886332,0.0075,2755.8,2755.4,3.62913]
[1739789886537,0.0075,2755.8,2755.5,0.362913]
[1739789886733,0.0075,2755.8,2755.6,3.62885]
[1739789887112,0.3009,2756.2,2755.9,3.62852]
[1739789887316,0.3009,2756.2,2755.7,3.62876]
[1739789887517,3.92911,2756.2,2755.7,3.62876]
[1739789887876,0.015,2756.1,2755.8,3.62869]
[1739789889167,0.015,2756.1,2755.7,3.62875]
[1739789889373,3.92909,2756.2,2756.0,3.62843]
[1739789889374,0.1,2756.2,2756.0,3.62843]
[1739789889542,0.1,2756.2,2755.9,0.768]
[1739789889735,0.1,2756.2,2755.8,0.362875]
[1739789889736,0.0075,2756.1,2755.8,3.991495]
[1739789889935,0.0075,2756.1,2755.8,3.62867]
[1739789890490,0.0075,2756.0,2755.3,1.50640015]
[1739789890638,0.015,2756.0,2755.6,3.62886]
[1739789891053,0.015,2756.0,2755.7,3.62881]
[1739789891253,0.015,2756.0,2755.6,3.62886]
[1739789892084,3.64346,2756.0,2755.5,3.62907]
[1739789892581,0.015,2755.9,2755.0,0.7801]
[1739789892882,0.015,2755.7,2755.3,3.62932]
[1739789893082,0.015,2755.7,2755.3,4.355215]
[1739789893380,0.015,2755.7,2755.3,7.984505]
[1739789893541,0.2009,2756.1,2755.4,3.62923]
[1739789893542,3.62865,2755.9,2755.4,3.62923]
[1739789893745,3.62856,2756.0,2755.4,3.62923]
[1739789893985,0.015,2755.9,2755.3,4.355215]
[1739789894292,0.0075,2755.7,2755.3,4.355215]
[1739789895174,0.015,2755.9,2755.4,3.62921]
[1739789895389,0.015,2755.9,2755.5,3.62908]
[1739789895593,0.1,2756.2,2755.7,4.40776]
[1739789896094,0.1,2756.2,2755.7,0.779]
[1739789896408,0.1,2756.2,2756.0,3.62837]
[1739789897207,0.1,2756.2,2755.8,3.62864]
[1739789897417,0.0075,2756.1,2755.8,3.62864]
[1739789897865,0.0075,2756.1,2755.8,4.432296]
[1739789898614,0.0075,2756.1,2755.8,0.803656]
[1739789898910,3.6359,2756.1,2755.4,4.44494]
[1739789899128,0.1,2756.2,2755.9,3.62856]
[1739789903632,0.1,2756.2,2755.9,3.62848]
[1739789904134,0.1,2756.2,2755.7,3.62876]
[1739789904497,0.1,2756.2,2755.8,3.6287]
[1739789905033,0.1,2756.2,2755.9,3.62853]
[1739789905534,0.1,2756.2,2755.8,3.62869]
[1739789905831,0.1,2756.2,2755.9,3.62855]
[1739789906916,0.1,2756.2,2755.9,3.62851]
[1739789907119,0.1,2756.2,2756.0,3.62837]
[1739789907464,0.1,2756.2,2755.9,3.991361]
[1739789907964,0.1,2756.2,2756.0,3.62836]
[1739789908320,0.1,2756.2,2755.9,3.991331]
[1739789910403,0.1,2756.2,2755.9,0.362851]
[1739789910570,0.1,2756.2,2755.8,3.62862]
[1739789911069,0.1,2756.2,2755.8,3.62864]
[1739789911422,0.0075,2756.1,2755.6,3.62896]
[1739789911622,0.0075,2756.1,2755.7,3.62873]
[1739789912662,0.0075,2756.1,2755.7,3.62875]
[1739789912827,3.62845,2756.0,2755.5,3.62901]
[1739789913027,0.015,2756.1,2755.6,4.436334]
[1739789913254,3.64332,2756.1,2755.6,4.436334]
[1739789913767,0.015,2756.1,2755.6,4.436334]
[1739789913972,0.015,2756.0,2755.6,4.436284]
[1739789914183,0.0075,2756.0,2755.6,4.436284]
[1739789915535,0.0075,2755.9,2755.6,4.436284]
[1739789915788,0.015,2756.1,2755.6,4.436284]
[1739789915992,3.64334,2756.1,2755.6,3.62889]
[1739789916979,0.0075,2755.9,2755.6,3.62889]
[1739789917204,0.0075,2755.9,2755.5,3.6291]
[1739789917399,0.015,2755.7,2755.1,0.8135]
[1739789917683,0.015,2755.7,2755.2,3.6295]
[1739789917984,3.62899,2755.6,2755.2,0.4443]
[1739789918191,0.0075,2755.6,2755.2,3.62947]
[1739789918635,3.63647,2755.6,2755.2,3.62947]
[1739789919081,0.0075,2755.6,2755.2,3.62947]
[1739789919433,0.015,2756.0,2754.8,0.8186]
[1739789919635,0.1,2756.2,2755.2,0.8279]
[1739789920084,3.62831,2756.1,2755.4,3.62922]
[1739789920256,3.62831,2756.1,2755.2,4.45735]
[1739789920257,3.62877,2755.8,2755.2,4.45735]
[1739789920453,3.62877,2755.8,2755.3,0.445735]
[1739789920675,3.62887,2755.7,2755.2,0.8279]
[1739789920873,3.62906,2755.6,2755.2,0.8279]
[1739789921890,3.62919,2755.5,2755.2,0.8279]
[1739789922054,3.6293,2755.4,2755.2,0.8279]
[1739789922388,3.62918,2755.5,2754.9,4.45272]
[1739789922590,3.62918,2755.5,2755.0,0.745272]
[1739789922798,3.62926,2755.4,2755.0,0.745272]
[1739789923361,3.62918,2755.5,2755.0,1.45599315]
[1739789923593,3.62918,2755.5,2755.0,0.745272]
[1739789923747,3.62943,2755.3,2755.0,0.745272]
[1739789923952,3.62918,2755.5,2754.9,4.45271]
[1739789924150,3.62929,2755.4,2754.9,4.45271]
[1739789924364,0.015,2755.7,2754.9,0.8229]
[1739789924578,3.62957,2755.2,2754.9,0.8229]
[1739789924968,3.62964,2755.1,2754.9,0.8229]
[1739789925166,3.62957,2755.2,2754.9,0.8229]
[1739789926204,3.62957,2755.2,2754.9,1.33995955]
[1739789927004,3.62971,2755.1,2754.9,0.51705955]
[1739789927165,7.25943,2755.1,2754.6,0.8272]
[1739789927499,3.63765,2754.7,2754.6,0.8272]
[1739789927696,3.63003,2754.8,2754.4,0.7765]
[1739789927697,3.6303,2754.6,2754.4,0.7765]
[1739789928600,3.63023,2754.7,2754.4,0.7765]
[1739789928765,0.015,2754.8,2754.0,0.8054]
[1739789928966,3.63056,2754.4,2754.0,0.8054]
[1739789929300,3.63056,2754.4,2754.0,1.249061]
[1739789930452,3.63056,2754.4,2754.0,0.8054]
[1739789930648,3.63074,2754.3,2753.8,3.63134]
[1739789931099,3.63056,2754.4,2753.8,3.63126]
[1739789931463,7.26119,2754.4,2753.8,3.63126]
[1739789931697,0.0075,2754.5,2754.0,3.63102]
[1739789932002,0.0075,2754.5,2754.0,0.72623]
[1739789932003,3.63093,2754.2,2754.0,0.72623]
[1739789932303,0.0075,2754.4,2753.2,3.0]
[1739789932304,0.0075,2753.9,2753.3,0.81]
[1739789932602,3.63879,2753.9,2753.3,4.44189]
[1739789932900,3.63135,2753.8,2753.4,0.807395]
[1739789933127,3.63148,2753.7,2753.4,0.807395]
[1739789933325,3.63135,2753.8,2753.4,0.807395]
[1739789933687,0.0075,2753.7,2753.3,4.44192]
[1739789933891,0.0075,2753.7,2753.3,5.15363685]
[1739789934376,0.015,2754.0,2753.5,3.63161]
[1739789934577,3.63063,2754.4,2753.5,0.87852669]
[1739789934826,0.015,2754.5,2753.9,3.63109]
[1739789935008,0.015,2754.3,2753.9,3.63109]
[1739789935206,3.64568,2754.3,2753.8,0.7848]
[1739789935427,0.015,2754.3,2753.8,4.857738]
[1739789935921,0.015,2754.3,2753.9,3.6311]
[1739789936126,3.62984,2755.0,2753.8,1.26272758]
[1739789936296,3.62984,2755.0,2754.5,3.63042]
[1739789936297,7.25969,2755.0,2754.5,3.63042]
[1739789936496,7.25969,2755.0,2754.4,0.8024]
[1739789936685,0.286,2755.1,2754.4,5.239295]
[1739789936686,3.64489,2754.9,2754.4,5.239295]
[1739789937080,3.64489,2754.9,2754.4,0.806365]
[1739789937081,0.015,2754.9,2754.4,0.806365]
[1739789937393,0.015,2754.9,2754.2,0.7824]
[1739789937715,3.63029,2754.6,2754.2,0.7824]
[1739789938074,0.0075,2754.5,2754.2,0.7824]
[1739789939032,0.0075,2754.6,2754.2,0.7824]
[1739789939237,3.63042,2754.5,2754.2,0.7824]
[1739789940124,0.0075,2754.6,2754.2,4.41311]
[1739789940335,0.0075,2754.6,2754.2,1.586803]
[1739789940883,0.0075,2754.6,2754.2,5.217563]
[1739789941412,0.015,2754.9,2754.2,5.217563]
[1739789941730,0.015,2754.9,2754.4,3.6305]
[1739789941933,3.64492,2754.9,2754.4,3.6305]
[1739789942112,3.64492,2754.9,2754.4,4.51893389]
[1739789942288,3.64492,2754.9,2754.4,4.51891389]
[1739789943132,0.286,2755.3,2754.6,3.63026]
[1739789943308,3.62957,2755.2,2754.7,3.63008]
[1739789943681,0.015,2755.1,2754.7,7.26015]
[1739789943880,0.015,2755.1,2754.7,3.63007]
[1739789944080,0.015,2755.1,2754.7,3.63006]
[1739789944281,0.0075,2755.1,2754.7,4.356101]
[1739789944482,0.0075,2755.1,2754.7,1.491241]
[1739789944717,3.63717,2755.1,2754.7,1.491241]
[1739789944917,3.62986,2755.0,2754.3,0.7652]
[1739789945223,3.63,2754.9,2754.4,3.63053]
[1739789945630,3.62989,2754.9,2754.3,4.39583]
[1739789945921,3.62989,2754.9,2754.4,3.63053]
[1739789947724,3.62986,2755.0,2754.4,3.63053]
[1739789947932,3.62991,2754.9,2754.5,0.439573]
[1739789948425,3.62986,2755.0,2754.5,0.439573]
[1739789948582,3.62989,2754.9,2754.3,0.7652]
[1739789948787,3.62989,2754.9,2754.4,3.63055]
[1739789950434,3.63004,2754.8,2754.4,3.63055]
[1739789950883,3.63004,2754.8,2754.3,4.39582]
[1739789951328,3.63004,2754.8,2754.3,0.7652]
[1739789951500,3.63004,2754.8,2754.4,4.070133]
[1739789951701,3.6299,2754.9,2754.4,4.070133]
[1739789952025,3.63003,2754.8,2754.4,4.070133]
[1739789953327,3.63003,2754.8,2754.4,0.439593]
[1739789953886,3.62993,2754.9,2754.4,4.070033]
[1739789954138,3.62993,2754.9,2754.5,0.8465823]
[1739789954832,3.62999,2754.9,2754.5,0.8465823]
[1739789955304,3.63004,2754.8,2754.5,0.8465823]
[1739789955836,3.6299,2754.9,2754.5,0.8465823]
[1739789956792,3.63002,2754.8,2754.5,0.8465823]
[1739789957610,3.63015,2754.7,2754.3,0.7652]
[1739789957810,3.63022,2754.7,2754.3,0.7652]
[1739789958647,3.63012,2754.8,2754.3,0.7652]
[1739789958845,0.015,2754.9,2754.4,3.63053]
[1739789960098,0.1,2756.2,2755.3,0.8306]
[1739789960335,0.1,2756.2,2755.7,3.62884]
[1739789960495,0.1,2756.2,2755.8,0.8306]
[1739789960690,0.0075,2756.1,2755.8,0.8306]
[1739789960897,0.0075,2756.1,2755.8,4.45927]
[1739789961442,0.0075,2756.1,2755.8,0.8306]
[1739789961995,0.0075,2756.1,2755.4,3.62916]
[1739789961996,3.62873,2755.8,2755.4,0.8306]
[1739789962193,3.6286,2755.9,2755.4,0.8306]
[1739789962814,3.6286,2755.9,2755.4,4.45983]
[1739789963119,3.6286,2755.9,2755.4,0.8306]
[1739789963766,3.62859,2755.9,2755.4,0.8306]
[1739789964672,3.62866,2755.9,2755.4,0.8306]
[1739789964966,3.62858,2755.9,2755.4,0.8306]
[1739789965172,3.62858,2755.9,2755.2,4.40029]
[1739789965343,3.62858,2755.9,2755.3,3.62936]
[1739789965534,3.62871,2755.8,2755.3,3.62936]
[1739789965736,3.62858,2755.9,2755.2,4.40029]
[1739789965934,3.62884,2755.7,2755.2,4.40029]
[1739789966118,3.62858,2755.9,2755.3,4.069379]
[1739789966322,3.62858,2755.9,2755.3,0.440029]
[1739789966323,3.62874,2755.8,2755.3,0.440029]
[1739789967097,3.62858,2755.9,2755.3,4.069389]
[1739789967394,0.0075,2755.9,2755.3,4.069389]
[1739789967998,0.0075,2755.9,2755.3,0.440029]
[1739789968146,3.62883,2755.8,2755.3,0.440029]
[1739789968345,0.015,2755.6,2755.2,0.7709]
[1739789968698,3.6295,2755.2,2754.9,0.7721]
[1739789969044,3.62964,2755.1,2754.2,0.8051]
[1739789969271,3.62976,2755.0,2754.4,4.36399476]
[1739789969454,0.0075,2755.0,2754.2,0.8051]
[1739789969656,0.0075,2755.0,2754.7,0.8051]
[1739789970789,0.0075,2754.5,2753.4,0.8163]
[1739789970943,3.63145,2753.8,2753.4,0.8163]
[1739789971143,3.63113,2754.0,2753.4,0.8163]
[1739789971378,3.63113,2754.0,2753.4,4.44815]
[1739789971741,0.015,2754.1,2753.6,3.63155]
[1739789971943,3.39455055,2755.1,2754.0,0.8217]
[1739789972153,3.63037,2754.6,2754.0,0.8217]
[1739789972656,0.015,2754.5,2754.0,0.8217]
[1739789972971,0.285,2754.8,2754.1,3.63086]
[1739789973146,3.63028,2754.7,2754.1,3.63086]
[1739789973348,0.015,2754.7,2754.1,3.63086]
[1739789973546,0.015,2754.7,2754.2,4.076036]
[1739789974248,0.015,2754.7,2754.2,0.445256]
[1739789974447,3.91455,2755.2,2754.4,3.63046]
[1739789974647,3.62986,2755.0,2754.4,3.63046]
[1739789974851,3.62989,2754.9,2754.4,3.63046]
[1739789975077,3.015,2755.2,2754.3,0.8097]
[1739789975391,3.63017,2754.7,2754.3,0.8097]
[1739789975629,3.63033,2754.6,2754.0,4.41937]
[1739789975888,0.0075,2754.9,2754.4,3.63052]
[1739789976190,0.0075,2754.8,2754.4,3.63049]
[1739789976589,0.0075,2754.8,2754.2,3.63076]
[1739789976786,3.62985,2755.0,2754.3,0.7592]
[1739789976986,6.6295,2755.2,2754.5,3.63031]
[1739789977151,3.62963,2755.1,2754.5,4.069261]
[1739789977997,3.62963,2755.1,2754.5,4.069361]
[1739789978238,7.25937,2755.1,2754.5,4.069361]
[1739789978358,3.63003,2754.8,2754.5,0.438951]
[1739789978683,3.63003,2754.8,2754.3,0.7592]
[1739789979000,3.62991,2754.9,2754.3,4.38988]
[1739789979304,3.63012,2754.8,2754.3,0.7592]
[1739789979501,0.0075,2754.8,2754.3,0.7592]
[1739789979707,3.63757,2754.8,2754.3,1.198193]
[1739789980574,3.63017,2754.7,2754.3,1.198193]
[1739789980901,3.63043,2754.5,2754.1,0.7828]
[1739789982536,3.63069,2754.3,2754.1,0.7828]
[1739789982833,3.63043,2754.5,2754.1,0.7828]
[1739789983129,3.63055,2754.5,2753.9,0.7502]
[1739789983301,3.63091,2754.2,2753.9,0.7502]
[1739789983503,7.26149,2754.3,2753.9,0.7502]
[1739789983704,3.63072,2754.3,2753.9,1.188356]
[1739789984732,3.0,2754.9,2754.5,0.8258]
[1739789984936,0.0075,2754.7,2754.5,0.8258]
[1739789985138,3.63766,2754.7,2754.5,0.8258]
[1739789985838,0.0075,2754.7,2754.5,0.8258]
[1739789987736,0.0075,2755.0,2754.5,1.271442]
[1739789988088,0.0075,2754.9,2754.5,4.901772]
[1739789988804,0.0075,2754.9,2754.6,3.63028]
[1739789989211,3.62971,2755.1,2754.5,1.271442]
[1739789989390,3.63009,2754.8,2754.5,0.8258]
[1739789989827,3.63002,2754.8,2754.5,0.8258]
[1739789990038,3.63002,2754.8,2754.3,0.8067]
[1739789990696,3.63002,2754.8,2754.3,4.43731]
[1739789990892,3.63773,2754.7,2754.3,1.68791722]
[1739789991696,0.0075,2754.7,2754.3,0.8067]
[1739789992092,0.0075,2754.7,2754.3,4.43737]
[1739789992298,0.0075,2754.7,2754.3,4.43731]
[1739789992698,3.63749,2754.9,2754.4,3.63049]
[1739789993123,0.0075,2754.9,2754.5,3.6304]
[1739789993328,0.0075,2754.9,2754.5,4.437169]
[1739789994193,0.0075,2754.9,2754.5,0.806769]
[1739789994711,0.0075,2754.9,2754.6,3.63027]
[1739789995128,0.0075,2754.9,2754.5,0.806769]
[1739789995437,3.63739,2754.9,2754.5,0.806769]
[1739789995647,0.0075,2754.7,2754.2,3.63071]
[1739789995851,3.63767,2754.7,2754.2,3.63071]
[1739789996009,3.63767,2754.7,2754.3,3.63066]
[1739789996200,0.0075,2754.7,2754.4,3.63048]
[1739789996394,0.0075,2754.7,2754.3,4.438507]
[1739789996954,3.63768,2754.7,2754.3,0.807937]
[1739789997137,3.6303,2754.6,2754.1,4.44885]
[1739789997440,0.0075,2754.7,2754.1,0.818]
[1739789997739,3.63065,2754.4,2753.9,4.39861]
[1739789997941,3.63065,2754.4,2753.9,0.802999]
[1739789997942,3.63063,2754.4,2753.9,0.802999]
[1739789998240,3.63085,2754.2,2753.7,7.97586324]
[1739789998438,0.015,2754.3,2753.8,3.63134]
[1739789998741,0.015,2754.3,2753.9,0.79758032]
[1739789998942,0.015,2754.3,2753.9,4.42875032]
[1739789999549,0.015,2754.3,2753.9,0.79758032]
[1739789999755,0.015,2754.3,2753.7,3.63135]
[1739790000047,0.015,2754.3,2753.6,0.7674]
[1739790000340,0.015,2754.3,2753.6,4.39896]
[1739790000494,0.015,2754.4,2754.0,3.63097]
[1739790000696,3.91528,2754.7,2754.1,0.7779]
[1739790000908,3.63033,2754.6,2754.1,4.40884]
[1739790001265,12.56368055,2755.5,2754.0,3.63098]
[1739790001266,0.285,2755.2,2754.3,0.7779]
[1739790001419,3.64443,2755.3,2754.5,3.63034]
[1739790001618,3.39455055,2755.8,2754.4,0.8191]
[1739790001948,3.39455055,2755.8,2755.0,4.44877]
[1739790001949,0.0075,2755.5,2755.0,4.44877]
[1739790002155,0.0075,2755.5,2755.0,0.8191]
[1739790002768,3.64398,2755.6,2755.0,4.44876]
[1739790003151,0.015,2755.6,2755.0,4.44876]
[1739790003314,3.64399,2755.6,2755.0,4.44876]
[1739790003515,0.015,2755.6,2755.0,1.69921745]
[1739790003763,3.64397,2755.6,2755.0,4.44882]
[1739790003922,0.015,2755.6,2755.0,4.44882]
[1739790004126,3.64406,2755.6,2755.0,8.0785]
[1739790004330,3.64406,2755.6,2755.0,4.44878]
[1739790004538,0.015,2755.6,2755.0,8.07844]
[1739790004744,3.644,2755.6,2755.1,0.80156726]
[1739790004948,0.015,2755.6,2755.1,0.80156726]
[1739790005131,0.015,2755.6,2755.2,3.62948]
[1739790005719,0.015,2755.6,2755.1,0.80156726]
[1739790006060,0.015,2755.6,2755.2,3.62944]
[1739790006225,0.015,2755.6,2755.2,4.51742373]
[1739790006914,0.015,2755.6,2755.2,4.51740373]
[1739790007159,3.3358173,2755.9,2755.4,3.62915]
[1739790007949,3.3358173,2755.9,2755.6,3.62892]
[1739790008305,3.3358173,2755.9,2755.5,0.7677]
[1739790008568,3.3358173,2755.9,2755.5,1.207385]
[1739790008733,3.3358173,2755.9,2755.5,0.7677]
[1739790009129,3.3358173,2755.9,2755.5,4.39678]
[1739790009458,3.3358173,2755.9,2755.5,4.39669]
[1739790009871,3.3358173,2755.9,2755.5,8.02566]
[1739790010082,3.3358173,2755.9,2755.6,3.62895]
[1739790010417,3.3358173,2755.9,2755.8,3.62871]
[1739790011567,3.3358173,2755.9,2755.6,4.431442]
[1739790011766,3.3358173,2755.9,2754.5,3.93036]
[1739790011767,3.3358173,2755.9,2755.3,0.8255]
[1739790012087,3.62888,2755.7,2755.3,0.8255]
[1739790012237,3.629,2755.6,2755.0,4.45521]
[1739790012433,3.62985,2755.0,2754.7,0.8255]
[1739790012677,3.64428,2755.4,2754.3,0.8255]
[1739790012678,0.015,2754.8,2754.3,0.8255]
[1739790012879,0.0075,2754.8,2754.2,0.72984369]
[1739790013020,0.0075,2754.8,2754.1,3.63095]
[1739790013216,0.0075,2755.0,2754.0,4.17875055]
[1739790013217,6.62954,2755.2,2754.6,3.63026]
[1739790013432,3.015,2755.5,2754.3,3.63063]
[1739790013633,3.62978,2755.0,2754.4,3.63053]
[1739790013850,0.015,2755.1,2754.5,4.43323]
[1739790014366,3.62984,2755.0,2754.5,0.8029]
[1739790014547,3.62984,2755.0,2754.3,4.3937]
[1739790014748,3.62984,2755.0,2754.4,0.43937]
[1739790014947,3.62992,2754.9,2754.3,0.7631]
[1739790015354,7.2597,2755.0,2754.3,0.7631]
[1739790015549,0.0075,2755.0,2754.5,3.63039]
[1739790015749,3.62953,2755.2,2754.4,3.6305]
[1739790015965,0.0075,2755.3,2754.5,0.43936]
[1739790016166,0.0075,2755.5,2754.5,0.43936]
[1739790016167,0.0075,2755.0,2754.5,0.43936]
[1739790016471,3.62995,2754.9,2754.5,0.43936]
[1739790016770,3.0075,2755.4,2754.5,3.63031]
[1739790017076,3.0,2755.4,2754.5,3.63036]
[1739790017274,0.015,2755.3,2754.3,7.78823055]
[1739790017432,3.6299,2754.9,2754.3,1.61566351]
[1739790017828,3.63734,2755.0,2754.3,5.24633351]
[1739790018242,0.0075,2755.0,2754.3,5.24633351]
[1739790018571,0.015,2755.3,2754.6,3.63017]
[1739790018744,0.015,2755.3,2754.7,3.63007]
[1739790018946,0.015,2755.3,2754.9,3.62987]
[1739790019271,7.25814,2755.6,2754.9,4.40527]
[1739790019468,3.62914,2755.5,2754.9,0.7754]
[1739790019677,0.0075,2755.5,2754.9,0.7754]
[1739790020190,3.62944,2755.3,2754.9,0.7754]
[1739790020341,3.62933,2755.4,2754.9,0.7754]
[1739790021244,3.64411,2755.5,2754.9,0.7754]
[1739790021546,3.62932,2755.4,2754.9,1.2522547]
[1739790021747,3.64411,2755.5,2754.9,0.7754]
[1739790021963,0.015,2755.5,2754.9,0.7754]
[1739790023242,0.015,2755.5,2754.9,4.40525]
[1739790023583,0.015,2755.5,2754.9,0.7754]
[1739790023983,7.01536785,2755.9,2754.9,0.7754]
[1739790024189,4.34041198,2755.9,2754.9,0.7754]
[1739790024386,3.62902,2755.6,2754.9,0.7754]
[1739790024744,3.62913,2755.5,2754.9,0.7754]
[1739790025384,0.0075,2755.5,2754.9,0.7754]
[1739790025540,3.6295,2755.2,2754.7,0.7839]
[1739790025741,3.62975,2755.1,2754.3,4.48316351]
[1739790025980,3.62981,2755.0,2754.5,0.7839]
[1739790026183,3.39455055,2755.0,2754.0,0.7609]
[1739790026487,3.63822,2754.3,2754.0,0.7609]
[1739790026670,3.63822,2754.3,2753.6,0.7609]
[1739790026859,0.015,2754.5,2753.7,4.14274122]
[1739790027500,0.015,2754.3,2753.7,4.14274122]
[1739790027670,3.63046,2754.5,2753.7,4.14274122]
[1739790028176,0.015,2754.5,2753.7,0.51137122]
[1739790028492,0.015,2754.5,2753.7,4.14274122]
[1739790028796,3.64544,2754.5,2753.8,0.49036412]
[1739790029184,3.64544,2754.5,2753.8,4.12168412]
[1739790029381,0.015,2754.5,2753.8,4.12168412]
[1739790029918,3.62979,2755.0,2754.1,0.8283]
[1739790030056,3.62997,2754.9,2754.1,0.8283]
[1739790030402,6.645,2754.9,2754.2,0.445935]
[1739790031084,3.6301,2754.8,2754.2,0.445935]
[1739790031700,3.39455055,2755.3,2754.2,3.63081]
[1739790031875,3.91461,2755.2,2754.4,3.63047]
[1739790032234,3.63004,2754.8,2754.2,0.7634]
[1739790032728,7.27476,2755.0,2754.2,4.39415]
[1739790032884,3.64485,2755.0,2754.3,4.46947873]
[1739790033080,0.015,2755.0,2754.3,4.46939873]
[1739790033487,3.64478,2755.0,2754.3,4.46939873]
[1739790033997,6.91455,2755.2,2754.4,4.40942]
[1739790034195,3.62964,2755.1,2754.5,0.8842516]
[1739790034824,3.62963,2755.1,2754.5,0.8842516]
[1739790034996,3.62963,2755.1,2754.4,0.7789]
[1739790035203,3.63004,2754.8,2754.4,0.7789]
[1739790035383,0.015,2754.9,2754.1,3.63084]
[1739790035728,0.015,2755.1,2754.0,0.7789]
[1739790035932,3.6299,2754.9,2754.4,0.7789]
[1739790036218,3.63014,2754.8,2754.4,1.219849]
[1739790036383,3.62984,2755.0,2754.4,0.7789]
[1739790036904,3.63011,2754.8,2754.4,0.7789]
[1739790037104,3.63039,2754.6,2754.4,0.7789]
[1739790037283,3.63026,2754.7,2754.4,0.7789]
[1739790037699,7.26053,2754.7,2754.4,0.7789]
[1739790037985,3.63026,2754.7,2754.4,0.7789]
[1739790038508,3.015,2754.9,2754.1,0.7588]
[1739790038706,3.63057,2754.4,2754.1,0.7588]
[1739790038912,3.63016,2754.7,2754.1,0.7588]
[1739790039112,3.64531,2754.6,2754.1,0.7588]
[1739790039605,3.64529,2754.6,2754.1,0.7588]
[1739790039797,3.63047,2754.5,2754.1,0.7588]
[1739790039993,3.63054,2754.5,2754.1,0.7588]
[1739790040220,3.015,2754.9,2754.1,0.7588]
[1739790040420,3.63081,2754.2,2753.8,0.8236]
[1739790040720,3.63078,2754.3,2753.8,0.8236]
[1739790040929,3.63086,2754.2,2753.8,0.8236]
[1739790041625,0.0075,2754.3,2753.8,0.8236]
[1739790041812,0.0075,2754.3,2753.9,0.445498]
[1739790042118,3.63829,2754.3,2753.9,0.445498]
[1739790042342,3.63829,2754.3,2753.8,0.8236]
[1739790042696,0.0075,2754.3,2753.8,0.8236]
[1739790043097,3.63103,2754.1,2753.8,0.8236]
[1739790044246,3.63103,2754.1,2753.4,3.63184]
[1739790044247,3.63114,2754.0,2753.4,0.8062]
[1739790045005,3.63114,2754.0,2753.4,4.43805]
[1739790045351,3.63114,2754.0,2753.5,0.806993]
[1739790045547,3.63141,2753.8,2753.5,0.806993]
[1739790045851,3.63121,2753.9,2753.4,0.8062]